bitfinex/quotes_BTCUSD_20251029
["timestamp","ask_amount","ask_price","bid_price","bid_amount"]
[1761765376374,0.17971066,111290.0,111280.0,0.0004]
[1761765376676,0.21565251,111290.0,111280.0,0.00054432]
[1761765377001,0.17971066,111290.0,111280.0,0.00054432]
[1761765377235,0.26952967,111290.0,111280.0,0.00054432]
[1761765377457,0.17974296,111270.0,111250.0,2.0]
[1761765377686,0.17974296,111270.0,111250.0,0.09030037]
[1761765377907,0.18871315,111280.0,111250.0,0.27007382]
[1761765378122,0.17974326,111270.0,111250.0,0.16010868]
[1761765378337,0.17974326,111270.0,111250.0,0.09946994]
[1761765378563,0.17975912,111260.0,111250.0,0.09946994]
[1761765378780,0.17975912,111260.0,111250.0,0.01165093]
[1761765378999,0.17975912,111260.0,111250.0,0.01265093]
[1761765379220,0.17975912,111260.0,111250.0,0.10246994]
[1761765379454,0.17975912,111260.0,111250.0,0.01265093]
[1761765380114,0.17975912,111260.0,111250.0,0.01065093]
[1761765380349,0.17975912,111260.0,111250.0,0.01365093]
[1761765380617,0.17975912,111260.0,111250.0,0.00348136]
[1761765380831,0.17975912,111260.0,111250.0,0.00743927]
[1761765381722,0.17975912,111260.0,111250.0,1e-08]
[1761765381723,0.64576041,111260.0,111250.0,1e-08]
[1761765382167,0.60957813,111260.0,111250.0,0.00300001]
[1761765382400,0.60957813,111260.0,111250.0,0.00200001]
[1761765382846,0.26957813,111260.0,111250.0,0.00200001]
[1761765383048,0.60957813,111260.0,111250.0,0.00200001]
[1761765383270,0.64576041,111260.0,111250.0,1e-08]
[1761765383483,0.66576039,111260.0,111250.0,1e-08]
[1761765383690,0.66776039,111260.0,111250.0,1e-08]
[1761765383900,0.66676039,111260.0,111250.0,1e-08]
[1761765384117,0.66576039,111260.0,111250.0,1e-08]
[1761765384380,0.66976039,111260.0,111250.0,1e-08]
[1761765384586,0.67076039,111260.0,111250.0,1e-08]
[1761765384796,0.55598988,111230.0,111220.0,8e-05]
[1761765385003,0.64580889,111230.0,111220.0,0.00021001]
[1761765385427,0.64580889,111230.0,111220.0,0.00086309]
[1761765386499,0.64580889,111230.0,111220.0,0.00286309]
[1761765386712,0.60962661,111230.0,111220.0,0.00286309]
[1761765386930,0.26962661,111230.0,111220.0,0.00286309]
[1761765387146,0.1798076,111230.0,111220.0,0.00286309]
[1761765387585,0.1798076,111230.0,111220.0,0.00386309]
[1761765388046,0.18879027,111250.0,111220.0,0.00386309]
[1761765388298,0.1798076,111230.0,111220.0,0.00321001]
[1761765388922,0.1797934,111240.0,111220.0,0.18203375]
[1761765389144,0.18879027,111250.0,111230.0,2.26962465]
[1761765389367,0.17979144,111240.0,111230.0,0.08981901]
[1761765389614,0.18879027,111250.0,111230.0,0.26962599]
[1761765390242,0.17979144,111240.0,111230.0,0.26962599]
[1761765390667,0.18879027,111250.0,111230.0,0.26962661]
[1761765390919,0.17979144,111240.0,111230.0,0.08981901]
[1761765391128,0.17979144,111240.0,111230.0,0.26962661]
[1761765391335,0.18879027,111250.0,111230.0,0.26962661]
[1761765391545,0.001,111240.0,111230.0,0.26962661]
[1761765391755,0.17977538,111250.0,111230.0,0.74194003]
[1761765391975,0.17979144,111240.0,111230.0,0.74194003]
[1761765392216,0.18079144,111240.0,111230.0,0.56213243]
[1761765392430,0.18079144,111240.0,111230.0,0.08981901]
[1761765392627,0.18079144,111240.0,111230.0,0.09081901]
[1761765393046,0.1798076,111230.0,111220.0,0.00021001]
[1761765394171,0.17977575,111250.0,111220.0,0.74216391]
[1761765394397,0.17979266,111240.0,111220.0,0.74416494]
[1761765394632,0.1798076,111230.0,111220.0,0.26985279]
[1761765394852,0.1808076,111230.0,111220.0,0.26985279]
[1761765395081,0.1808076,111230.0,111220.0,0.09002902]
[1761765395299,0.1798076,111230.0,111220.0,0.09002902]
[1761765395523,0.1798076,111230.0,111220.0,0.27350587]
[1761765395741,0.1798076,111230.0,111220.0,0.0936821]
[1761765396259,0.17979266,111240.0,111220.0,0.27350587]
[1761765396469,0.17979266,111240.0,111220.0,0.09302902]
[1761765396743,0.1798076,111230.0,111220.0,0.09302902]
[1761765397202,0.1798076,111230.0,111220.0,0.0906821]
[1761765398009,0.1798076,111230.0,111220.0,0.0926821]
[1761765398236,0.1798076,111230.0,111220.0,0.27250587]
[1761765398476,0.1798076,111230.0,111220.0,0.0946821]
[1761765398884,0.1798076,111230.0,111220.0,0.0926821]
[1761765399303,0.1798076,111230.0,111220.0,0.0956821]
[1761765399525,0.17979263,111240.0,111220.0,0.27550587]
[1761765399951,0.1798076,111230.0,111220.0,0.09502902]
[1761765400152,0.1797917,111240.0,111220.0,0.74716621]
[1761765400371,0.17979144,111240.0,111230.0,2.08981901]
[1761765400572,0.17979144,111240.0,111230.0,0.08981901]
[1761765400899,0.1797753,111250.0,111230.0,0.74194003]
[1761765401396,0.17979144,111240.0,111230.0,0.74194003]
[1761765401841,0.17979144,111240.0,111230.0,0.26962661]
[1761765402057,0.17979144,111240.0,111230.0,0.08981901]
[1761765402497,0.1798076,111230.0,111220.0,0.00021001]
[1761765402703,0.1798076,111230.0,111220.0,0.09002902]
[1761765403203,0.1798076,111230.0,111220.0,0.00021001]
[1761765403689,0.26962661,111230.0,111220.0,0.00321001]
[1761765403972,0.26962661,111230.0,111180.0,0.00912309]
[1761765404222,0.26962661,111230.0,111180.0,0.00925308]
[1761765404223,0.17987229,111190.0,111180.0,0.00925308]
[1761765404484,0.17987229,111190.0,111180.0,0.00012999]
[1761765404751,0.17987229,111190.0,111180.0,0.0093477]
[1761765405013,0.17987229,111190.0,111180.0,0.00012999]
[1761765405497,0.17987229,111190.0,111180.0,0.00165438]
[1761765406239,0.17987229,111190.0,111180.0,0.00565438]
[1761765406474,0.17987229,111190.0,111180.0,0.00165438]
[1761765406953,0.17987229,111190.0,111180.0,0.00665438]
[1761765407184,0.17987229,111190.0,111180.0,0.00265438]
[1761765407776,0.17987229,111190.0,111180.0,0.00365438]
[1761765408295,0.17987229,111190.0,111180.0,0.00265438]
[1761765408546,0.17987229,111190.0,111180.0,0.00465438]
[1761765411162,0.17987229,111190.0,111180.0,0.00265438]
[1761765411765,0.001,111190.0,111180.0,0.00265438]
[1761765411970,0.18885802,111210.0,111200.0,2.0]
[1761765411971,0.18883727,111210.0,111200.0,2.0]
[1761765412178,0.17983994,111210.0,111200.0,0.08981901]
[1761765412386,0.17982425,111220.0,111200.0,0.27076297]
[1761765412592,0.17983994,111210.0,111200.0,0.08981901]
[1761765412997,0.17982425,111220.0,111200.0,0.08981901]
[1761765413201,0.00899038,111230.0,111210.0,0.08981901]
[1761765413405,0.17982377,111220.0,111210.0,0.08981901]
[1761765413818,0.18879952,111230.0,111210.0,0.08981901]
[1761765414017,0.17982377,111220.0,111210.0,0.56213243]
[1761765414216,0.17982377,111220.0,111210.0,0.08981901]
[1761765414605,0.17982377,111220.0,111210.0,0.09181901]
[1761765414974,0.17982377,111220.0,111210.0,0.10173067]
[1761765415393,0.17982377,111220.0,111210.0,0.09181901]
[1761765415819,0.17982377,111220.0,111210.0,0.09381901]
[1761765417869,0.17982377,111220.0,111210.0,0.09468986]
[1761765421491,0.17982377,111220.0,111210.0,0.00487085]
[1761765423093,0.17982377,111220.0,111210.0,0.00287085]
[1761765423301,0.17982377,111220.0,111210.0,0.00187085]
[1761765423516,0.17982377,111220.0,111210.0,0.00287085]
[1761765423724,0.17982377,111220.0,111210.0,0.00187085]
[1761765424156,0.17982377,111220.0,111210.0,0.00087085]
[1761765424364,0.17982377,111220.0,111210.0,0.00187085]
[1761765424572,0.17982377,111220.0,111210.0,0.00287085]
[1761765424775,0.17982377,111220.0,111210.0,0.00087085]
[1761765424990,0.26964278,111220.0,111210.0,0.00087085]
[1761765425174,0.26964278,111220.0,111210.0,0.00187085]
[1761765425175,0.60964278,111220.0,111210.0,0.00187085]
[1761765425621,0.17987229,111190.0,111180.0,0.00012999]
[1761765426269,0.17987229,111190.0,111180.0,0.089949]
[1761765426708,0.17985668,111200.0,111180.0,0.26983746]
[1761765426983,0.17984305,111210.0,111190.0,2.2696913]
[1761765427197,0.18981495,111220.0,111210.0,0.17983994]
[1761765427198,0.18881495,111220.0,111210.0,0.17983994]
[1761765427404,0.18881495,111220.0,111200.0,0.91285434]
[1761765427668,0.17983994,111210.0,111200.0,0.08981901]
[1761765427936,0.17983994,111210.0,111200.0,0.26967512]
[1761765428208,0.18881495,111220.0,111200.0,1.00267335]
[1761765428439,0.18881495,111220.0,111210.0,0.26965895]
[1761765428682,0.18881495,111220.0,111210.0,0.08981901]
[1761765429186,0.17983994,111210.0,111200.0,5e-05]
[1761765429656,0.51983994,111210.0,111200.0,5e-05]
[1761765429844,0.60965895,111210.0,111200.0,5e-05]
[1761765430135,0.60965895,111210.0,111200.0,0.00105]
[1761765430421,0.60965895,111210.0,111200.0,5e-05]
[1761765430781,0.60965895,111210.0,111200.0,0.00105]
[1761765431221,0.61065895,111210.0,111200.0,5e-05]
[1761765431222,0.61265895,111210.0,111200.0,5e-05]
[1761765431464,0.61365895,111210.0,111200.0,5e-05]
[1761765432006,0.52383994,111210.0,111200.0,5e-05]
[1761765432781,0.51983994,111210.0,111200.0,5e-05]
[1761765433019,0.52083994,111210.0,111200.0,5e-05]
[1761765433246,0.52283994,111210.0,111200.0,5e-05]
[1761765435398,0.18283994,111210.0,111200.0,5e-05]
[1761765436246,0.18183994,111210.0,111200.0,5e-05]
[1761765436457,0.17983994,111210.0,111200.0,5e-05]
[1761765436663,0.17983994,111210.0,111200.0,0.00026778]
[1761765437980,0.17983994,111210.0,111200.0,0.00226778]
[1761765439312,0.17983994,111210.0,111200.0,0.00126778]
[1761765439513,0.17983994,111210.0,111200.0,0.00026778]
[1761765440607,0.18881495,111220.0,111200.0,0.00026778]
[1761765440608,0.18879952,111230.0,111200.0,1.00293895]
[1761765440827,0.18879952,111230.0,111210.0,0.08981901]
[1761765440828,0.17982443,111220.0,111210.0,0.08981901]
[1761765441321,0.17982443,111220.0,111200.0,0.18012171]
[1761765441322,0.17983994,111210.0,111200.0,0.00026778]
[1761765441533,0.17983994,111210.0,111200.0,0.09108679]
[1761765441746,0.17983994,111210.0,111200.0,0.00126778]
[1761765442208,0.18988214,111210.0,111200.0,0.00126778]
[1761765442450,0.17983994,111210.0,111200.0,0.00126778]
[1761765442687,0.17983994,111210.0,111200.0,0.00026778]
[1761765442923,0.17983994,111210.0,111200.0,0.00126778]
[1761765443398,0.17983994,111210.0,111200.0,0.00026778]
[1761765443632,0.18879952,111230.0,111210.0,2.17983994]
[1761765443846,0.18879952,111230.0,111220.0,0.08981901]
[1761765444272,0.17983994,111210.0,111200.0,0.34026778]
[1761765444495,0.17983994,111210.0,111200.0,0.00026778]
[1761765448276,0.51983994,111210.0,111200.0,0.00026778]
[1761765448939,0.52083994,111210.0,111200.0,0.00026778]
[1761765449564,0.51983994,111210.0,111200.0,0.00026778]
[1761765450219,0.18183994,111210.0,111200.0,0.00026778]
[1761765450428,0.17983994,111210.0,111200.0,0.09008679]
[1761765450638,0.18083994,111210.0,111200.0,0.11708242]
[1761765450850,0.18083994,111210.0,111200.0,0.09008679]
[1761765451705,0.18083994,111210.0,111200.0,0.00026778]
[1761765451946,0.17983994,111210.0,111200.0,0.00026778]
[1761765452465,0.18879952,111230.0,111200.0,0.26994081]
[1761765452702,0.18981211,111240.0,111210.0,2.08981901]
[1761765452703,0.17982377,111220.0,111210.0,2.08981901]
[1761765452938,0.17980804,111230.0,111210.0,0.26965895]
[1761765453205,0.0010311,111240.0,111230.0,0.1798076]
[1761765453425,0.18082254,111240.0,111220.0,0.17982377]
[1761765453640,0.001,111230.0,111220.0,0.31549025]
[1761765454114,0.1808076,111230.0,111220.0,0.31549025]
[1761765454323,0.1808076,111230.0,111220.0,0.13566648]
[1761765454758,0.1808076,111230.0,111200.0,0.00026778]
[1761765454759,0.51983994,111210.0,111200.0,0.00026778]
[1761765456766,0.52183994,111210.0,111200.0,0.00026778]
[1761765456974,0.52283994,111210.0,111200.0,0.00026778]
[1761765457417,0.52083994,111210.0,111200.0,0.00026778]
[1761765458507,0.51983994,111210.0,111200.0,0.00026778]
[1761765459794,0.52083994,111210.0,111200.0,0.00026778]
[1761765460012,0.52183994,111210.0,111200.0,0.00026778]
[1761765460219,0.51983994,111210.0,111200.0,0.00026778]
[1761765461123,0.17983994,111210.0,111200.0,0.00026778]
[1761765463521,0.21580775,111210.0,111200.0,0.00026778]
[1761765465075,0.18083994,111210.0,111200.0,0.00026778]
[1761765465323,0.18183994,111210.0,111200.0,0.00026778]
[1761765465550,0.17983994,111210.0,111200.0,0.00026778]
[1761765465782,0.17983994,111210.0,111200.0,0.00126778]
[1761765466677,0.17990465,111170.0,111160.0,0.03082625]
[1761765466891,0.17990465,111170.0,111160.0,0.30069608]
[1761765467352,0.17990465,111170.0,111160.0,0.34979326]
[1761765467566,0.17990291,111180.0,111160.0,0.34979326]
[1761765467791,0.17990465,111170.0,111160.0,0.34979326]
[1761765468239,0.17990465,111170.0,111160.0,0.16987243]
[1761765468703,0.17990465,111170.0,111160.0,0.34979326]
[1761765468920,0.17990465,111170.0,111160.0,0.12077525]
[1761765469364,0.17990465,111170.0,111160.0,0.30469608]
[1761765469586,0.17990291,111180.0,111160.0,0.30669608]
[1761765469809,0.17990291,111180.0,111160.0,0.30674608]
[1761765470024,0.17990465,111170.0,111160.0,0.30674608]
[1761765470473,0.17810617,111170.0,111160.0,0.30674608]
[1761765470906,0.17990291,111180.0,111170.0,0.17990465]
[1761765471145,0.17990291,111180.0,111170.0,0.31838873]
[1761765471353,0.17990291,111180.0,111170.0,0.13848408]
[1761765472453,0.17990291,111180.0,111170.0,0.32038873]
[1761765472701,0.17990291,111180.0,111170.0,0.32138873]
[1761765472930,0.17988846,111180.0,111170.0,0.32138873]
[1761765473601,0.17988846,111180.0,111170.0,0.32143873]
[1761765474047,0.17988846,111180.0,111170.0,0.14153408]
[1761765474247,0.17988846,111180.0,111170.0,0.32143873]
[1761765474771,0.18889133,111190.0,111170.0,0.32143873]
[1761765474980,0.17987229,111190.0,111180.0,0.26970747]
[1761765475191,0.17987229,111190.0,111180.0,0.13991485]
[1761765475400,0.17987229,111190.0,111180.0,0.31980331]
[1761765476860,0.17989449,111200.0,111190.0,0.17987229]
[1761765477069,0.17989449,111200.0,111190.0,0.08981901]
[1761765477279,0.17989449,111200.0,111190.0,0.2696913]
[1761765477485,0.18883193,111210.0,111190.0,0.31835637]
[1761765477703,0.17985611,111200.0,111190.0,0.31835637]
[1761765478575,0.17985611,111200.0,111190.0,0.13848408]
[1761765479034,0.17985611,111200.0,111190.0,0.13970187]
[1761765479456,0.17985611,111200.0,111190.0,0.14170187]
[1761765480572,0.17985611,111200.0,111190.0,0.00321779]
[1761765480806,0.17985611,111200.0,111190.0,0.00326779]
[1761765481454,0.17985611,111200.0,111190.0,0.00226779]
[1761765481672,0.17985611,111200.0,111190.0,0.00026779]
[1761765483371,0.60967512,111200.0,111190.0,0.00026779]
[1761765483578,0.60967512,111200.0,111190.0,1e-08]
[1761765483579,0.7257081,111200.0,111190.0,1e-08]
[1761765484417,0.7277081,111200.0,111190.0,1e-08]
[1761765484646,0.7267081,111200.0,111190.0,1e-08]
[1761765484865,0.7257081,111200.0,111190.0,1e-08]
[1761765485080,0.7267081,111200.0,111190.0,1e-08]
[1761765485272,0.7277081,111200.0,111190.0,1e-08]
[1761765485680,0.52422761,111200.0,111190.0,1e-08]
[1761765485905,0.70408372,111200.0,111190.0,1e-08]
[1761765487276,0.62423302,111200.0,111190.0,1e-08]
[1761765488494,0.58805074,111200.0,111190.0,1e-08]
[1761765488974,0.62423302,111200.0,111190.0,1e-08]
[1761765490858,0.63423301,111200.0,111190.0,1e-08]
[1761765491074,0.63423301,111200.0,111160.0,0.03100624]
[1761765491075,0.17990465,111170.0,111160.0,0.03100624]
[1761765491313,0.32751463,111170.0,111160.0,0.03100624]
[1761765491964,0.32751463,111170.0,111160.0,0.03165985]
[1761765492642,0.30590594,111170.0,111160.0,0.03165985]
[1761765493506,0.30890594,111170.0,111160.0,0.03165985]
[1761765493966,0.30690594,111170.0,111160.0,0.03165985]
[1761765494188,0.27372366,111170.0,111160.0,0.03165985]
[1761765494374,0.18390465,111170.0,111160.0,0.03165985]
[1761765495303,0.004,111170.0,111160.0,3.13649228]
[1761765495521,0.17987361,111190.0,111180.0,2.0]
[1761765495734,0.17987361,111190.0,111180.0,2.16342024]
[1761765495951,0.17987361,111190.0,111180.0,0.07360123]
[1761765496175,0.17990465,111170.0,111160.0,0.03100624]
[1761765496395,0.17990465,111170.0,111160.0,0.12082525]
[1761765496610,0.17990465,111170.0,111160.0,0.03200624]
[1761765497049,0.17990465,111170.0,111160.0,0.03100624]
[1761765497752,0.17990465,111170.0,111160.0,0.03200624]
[1761765497963,0.17990465,111170.0,111160.0,0.03400624]
[1761765499079,0.17990465,111170.0,111160.0,0.03300624]
[1761765499259,0.30570297,111170.0,111160.0,0.03300624]
[1761765499727,0.68188525,111170.0,111160.0,0.03300624]
[1761765500172,0.68188525,111170.0,111160.0,1e-08]
[1761765500605,0.17995321,111140.0,111120.0,2.0]
[1761765500821,0.17995321,111140.0,111130.0,2.0]
[1761765501037,0.1799694,111130.0,111120.0,0.09030101]
[1761765501470,0.17995321,111140.0,111120.0,0.27181224]
[1761765501679,0.1799694,111130.0,111120.0,0.09030101]
[1761765502318,0.64597069,111130.0,111120.0,0.000482]
[1761765502527,0.64578067,111130.0,111120.0,0.002482]
[1761765502738,0.64578067,111130.0,111120.0,0.007482]
[1761765502961,0.64578067,111130.0,111120.0,0.005482]
[1761765503174,0.68196295,111130.0,111120.0,0.00100001]
[1761765503384,0.68196295,111130.0,111120.0,0.00300001]
[1761765503598,0.68196295,111130.0,111120.0,1e-08]
[1761765504077,0.69296294,111130.0,111120.0,1e-08]
[1761765505182,0.69196294,111130.0,111120.0,1e-08]
[1761765505445,0.34,111100.0,111090.0,1e-08]
[1761765505660,0.69849833,111100.0,111090.0,1e-08]
[1761765506531,0.69849833,111100.0,111080.0,1e-08]
[1761765506532,0.55621648,111090.0,111080.0,1e-08]
[1761765506766,0.2162489,111070.0,111060.0,1e-08]
[1761765506986,0.30606791,111070.0,111060.0,1e-08]
[1761765507204,0.18009905,111050.0,111040.0,1e-08]
[1761765507418,0.18013149,111030.0,111020.0,5e-05]
[1761765507864,0.18013149,111030.0,111020.0,0.00375843]
[1761765508527,0.18021754,111030.0,111020.0,0.00375843]
[1761765508746,8.605e-05,111030.0,111020.0,0.00375843]
[1761765508962,8.605e-05,111030.0,111020.0,0.61372516]
[1761765509181,8.605e-05,111030.0,111020.0,0.69311377]
[1761765509405,8.605e-05,111030.0,111020.0,0.69411377]
[1761765509827,8.605e-05,111030.0,111020.0,0.69311377]
[1761765510036,8.605e-05,111030.0,111020.0,0.69411377]
[1761765510472,0.18021754,111030.0,111020.0,0.69411377]
[1761765511384,8.605e-05,111030.0,111020.0,0.69311377]
[1761765511595,0.18021754,111030.0,111020.0,0.51596605]
[1761765511807,0.18021754,111030.0,111020.0,0.69611377]
[1761765512041,8.605e-05,111030.0,111020.0,0.69611377]
[1761765512247,0.00108605,111030.0,111020.0,0.70011377]
[1761765512460,8.605e-05,111030.0,111020.0,0.69611377]
[1761765512896,0.00108605,111030.0,111020.0,0.73929605]
[1761765513117,0.00108605,111030.0,111020.0,3.21322896]
[1761765513345,0.00108605,111030.0,111020.0,2.73929605]
[1761765513548,8.605e-05,111030.0,111020.0,3.20622896]
[1761765513757,8.605e-05,111030.0,111020.0,3.24110896]
[1761765513976,0.00108605,111030.0,111020.0,3.25010896]
[1761765514617,0.00108605,111030.0,111020.0,3.24710896]
[1761765514838,0.00108605,111030.0,111020.0,3.26710894]
[1761765515050,0.00108605,111030.0,111020.0,3.31914488]
[1761765515282,8.605e-05,111030.0,111020.0,3.2771657]
[1761765515492,0.00108605,111030.0,111020.0,2.77417605]
[1761765515742,0.00208605,111030.0,111020.0,3.25310896]
[1761765515953,0.00108605,111030.0,111020.0,3.24310896]
[1761765516140,0.00108605,111030.0,111020.0,3.25110896]
[1761765516375,0.00108605,111030.0,111020.0,3.23810896]
[1761765516615,0.00108605,111030.0,111020.0,3.25110895]
[1761765516835,0.18009219,111120.0,111070.0,0.18006328]
[1761765516836,0.18909173,111110.0,111070.0,0.18006328]
[1761765517054,0.18956988,111090.0,111070.0,0.08981901]
[1761765517268,0.18005041,111080.0,111070.0,0.26988563]
[1761765517701,0.18956988,111090.0,111070.0,0.26988563]
[1761765517926,0.18005041,111080.0,111070.0,0.08981901]
[1761765518991,0.18005041,111080.0,111070.0,0.09581901]
[1761765519431,0.18005041,111080.0,111070.0,0.08981901]
[1761765519641,0.18008283,111060.0,111050.0,0.52907804]
[1761765519854,0.18008283,111060.0,111050.0,0.42981901]
[1761765520065,0.18008095,111070.0,111050.0,0.26991775]
[1761765520278,0.18008095,111070.0,111060.0,0.08981901]
[1761765520914,0.18006662,111070.0,111060.0,0.26990184]
[1761765521125,0.18006662,111070.0,111060.0,0.08981901]
[1761765521557,0.18006662,111070.0,111060.0,0.26990184]
[1761765521782,0.18956988,111090.0,111070.0,0.18006662]
[1761765522002,0.18005041,111080.0,111070.0,0.08981901]
[1761765522853,0.18956988,111090.0,111070.0,0.26988563]
[1761765523082,0.18005041,111080.0,111070.0,0.26988563]
[1761765523539,0.18005041,111080.0,111070.0,0.1374324]
[1761765523773,0.18005041,111080.0,111070.0,0.09243555]
[1761765523988,0.18005041,111080.0,111070.0,0.09343555]
[1761765524642,0.18105041,111080.0,111070.0,0.09843555]
[1761765524862,0.18005041,111080.0,111070.0,0.09243555]
[1761765525078,0.18105041,111080.0,111070.0,0.10243555]
[1761765525502,0.001,111080.0,111070.0,0.28250217]
[1761765525723,0.001,111080.0,111070.0,0.31075401]
[1761765525950,0.18105041,111080.0,111070.0,0.13068739]
[1761765526592,0.001,111080.0,111070.0,0.31075401]
[1761765526809,0.18105041,111080.0,111070.0,0.13068739]
[1761765527043,0.18105041,111080.0,111070.0,0.31075401]
[1761765527271,0.001,111080.0,111070.0,0.31075401]
[1761765527490,0.18105041,111080.0,111070.0,0.31075401]
[1761765527693,0.001,111080.0,111070.0,0.31075401]
[1761765528198,0.001,111080.0,111070.0,1.12468692]
[1761765528409,0.001,111080.0,111070.0,2.65075401]
[1761765528625,0.18105041,111080.0,111070.0,2.65075401]
[1761765529042,0.001,111080.0,111070.0,2.65075401]
[1761765529664,0.18105041,111080.0,111070.0,2.65075401]
[1761765529804,0.001,111080.0,111070.0,2.65075401]
[1761765530906,0.001,111080.0,111070.0,3.12468692]
[1761765531362,0.001,111080.0,111070.0,3.1957492]
[1761765531492,0.001,111080.0,111070.0,3.20574919]
[1761765532116,0.00048207,111090.0,111080.0,0.5300504]
[1761765532328,2.07e-06,111090.0,111080.0,2.73256075]
[1761765532525,2.07e-06,111090.0,111080.0,3.68282485]
[1761765533116,0.21302493,111170.0,111150.0,0.17993702]
[1761765533333,0.17992083,111160.0,111150.0,0.26990052]
[1761765533554,0.17992083,111160.0,111150.0,0.11821534]
[1761765533765,0.18824418,111160.0,111150.0,0.29815236]
[1761765534181,0.00832335,111160.0,111150.0,0.29815236]
[1761765534398,0.17992083,111160.0,111150.0,0.29815236]
[1761765534611,0.18890013,111170.0,111160.0,0.17992083]
[1761765534844,0.19916645,111180.0,111160.0,0.31754716]
[1761765535053,0.17990465,111170.0,111160.0,0.04780732]
[1761765535256,0.17990465,111170.0,111160.0,0.26973984]
[1761765535460,0.17999481,111180.0,111160.0,0.26973984]
[1761765535716,0.17990465,111170.0,111160.0,2.0]
[1761765535911,0.17990465,111170.0,111160.0,0.08981901]
[1761765536118,0.17999481,111180.0,111160.0,0.26973966]
[1761765536319,0.17999481,111180.0,111170.0,0.08981901]
[1761765537927,0.17999481,111180.0,111170.0,0.09081901]
[1761765538142,0.17999481,111180.0,111170.0,0.09281901]
[1761765538796,0.17988846,111180.0,111170.0,0.27272366]
[1761765539003,0.18894122,111190.0,111170.0,0.74665657]
[1761765539210,0.17988846,111180.0,111170.0,0.33966843]
[1761765539624,0.18894122,111190.0,111170.0,0.33966843]
[1761765539810,0.17988846,111180.0,111170.0,0.33923273]
[1761765539942,0.18894122,111190.0,111180.0,0.18010629]
[1761765540149,0.18894122,111190.0,111180.0,0.09003684]
[1761765540569,0.23694995,111190.0,111180.0,0.00021783]
[1761765540773,0.25608991,111190.0,111180.0,0.00021783]
[1761765541191,0.25608991,111190.0,111180.0,0.00121783]
[1761765541406,0.21638581,111190.0,111180.0,0.00121783]
[1761765542511,0.21738581,111190.0,111180.0,0.00121783]
[1761765542911,0.19824585,111190.0,111180.0,0.00021783]
[1761765543369,0.18994122,111190.0,111180.0,0.00021783]
[1761765543580,0.19823472,111190.0,111180.0,0.00021783]
[1761765543783,0.18894122,111190.0,111180.0,0.00021783]
[1761765544061,0.17990273,111190.0,111180.0,0.00021783]
[1761765544267,0.18889634,111190.0,111180.0,0.00121783]
[1761765544703,0.19718906,111190.0,111180.0,0.00121783]
[1761765544926,0.19718936,111190.0,111180.0,0.00121783]
[1761765545139,0.19718959,111190.0,111180.0,0.00121783]
[1761765545352,0.18889634,111190.0,111180.0,0.00121783]
[1761765545888,0.18989634,111190.0,111180.0,0.00021783]
[1761765546361,0.18889634,111190.0,111180.0,0.00021783]
[1761765546497,0.18989634,111190.0,111180.0,0.00021783]
[1761765551220,0.18989634,111190.0,111180.0,0.09003684]
[1761765551797,0.18989634,111190.0,111180.0,0.00021783]
[1761765552806,0.18989634,111190.0,111180.0,0.09003684]
[1761765553465,0.18989634,111190.0,111180.0,0.00021783]
[1761765555239,0.27971535,111190.0,111180.0,0.00021783]
[1761765555451,0.32679803,111190.0,111180.0,0.00021783]
[1761765556334,0.18989634,111190.0,111180.0,0.00021783]
[1761765558116,0.18989634,111190.0,111180.0,0.09003684]
[1761765559217,0.001,111190.0,111180.0,0.2699253]
[1761765559432,0.18087229,111190.0,111180.0,0.2699253]
[1761765559642,0.18087229,111190.0,111180.0,0.09003684]
[1761765560275,0.18087229,111190.0,111180.0,0.02721195]
[1761765560535,0.18087229,111190.0,111180.0,0.00021783]
[1761765561280,0.18087229,111190.0,111180.0,0.09003684]
[1761765562316,0.18087229,111190.0,111180.0,0.2699253]
[1761765562727,0.18077229,111190.0,111180.0,0.09003684]
[1761765563589,0.00922863,111190.0,111180.0,0.2699253]
[1761765563798,0.18077229,111190.0,111180.0,0.13501982]
[1761765564017,0.0009,111190.0,111180.0,1.04813271]
[1761765564230,0.18077229,111190.0,111180.0,0.13501982]
[1761765564444,0.18077229,111190.0,111180.0,0.00021783]
[1761765564665,0.1891009,111190.0,111180.0,0.00021783]
[1761765565322,0.18077229,111190.0,111180.0,0.00021783]
[1761765565984,0.18910075,111190.0,111180.0,0.00021783]
[1761765566411,0.18820075,111190.0,111180.0,0.00121783]
[1761765566850,0.17987229,111190.0,111180.0,0.00121783]
[1761765567477,0.18920246,111190.0,111180.0,0.00021783]
[1761765567698,0.18087229,111190.0,111180.0,0.00021783]
[1761765568170,0.17987229,111190.0,111180.0,0.00021783]
[1761765569005,0.17987229,111190.0,111180.0,0.00121783]
[1761765570496,0.17987229,111190.0,111180.0,0.18110629]
[1761765570717,0.17987229,111190.0,111180.0,0.21833237]
[1761765570925,0.17987229,111190.0,111180.0,0.03844391]
[1761765571138,0.17987229,111190.0,111180.0,0.21833237]
[1761765571351,0.17987229,111190.0,111180.0,0.03844391]
[1761765571566,0.17987229,111190.0,111180.0,0.00121783]
[1761765572014,0.19904807,111200.0,111180.0,0.18110629]
[1761765572230,0.17987229,111190.0,111180.0,0.00121783]
[1761765574287,0.2696913,111190.0,111180.0,0.00121783]
[1761765574497,0.34406052,111190.0,111180.0,0.00121783]
[1761765574703,0.7202428,111190.0,111180.0,0.00121783]
[1761765575543,0.7202428,111190.0,111180.0,0.00021783]
[1761765576385,0.7212428,111190.0,111180.0,0.00021783]
[1761765576826,0.7202428,111190.0,111180.0,0.00021783]
[1761765577266,0.7212428,111190.0,111180.0,0.00021783]
[1761765577696,0.7202428,111190.0,111180.0,0.00021783]
[1761765577919,0.67337045,111190.0,111180.0,0.00021783]
[1761765578132,0.67437045,111190.0,111180.0,0.00021783]
[1761765579180,0.67337045,111190.0,111180.0,0.00021783]
[1761765579614,0.67437045,111190.0,111180.0,0.00021783]
[1761765580033,0.76219372,111190.0,111180.0,0.00021783]
[1761765580669,0.72601144,111190.0,111180.0,0.00021783]
[1761765580880,0.71769047,111190.0,111180.0,0.00021783]
[1761765581120,0.52087229,111190.0,111180.0,0.00021783]
[1761765581753,0.54002705,111190.0,111180.0,0.00021783]
[1761765582385,0.53902705,111190.0,111180.0,0.00021783]
[1761765582600,0.54002705,111190.0,111180.0,0.00021783]
[1761765583035,0.61441598,111190.0,111180.0,0.00021783]
[1761765583735,0.61341598,111190.0,111180.0,0.00021783]
[1761765584407,0.59426122,111190.0,111180.0,0.00021783]
[1761765584624,0.59426122,111190.0,111180.0,0.00121783]
[1761765584842,0.59426122,111190.0,111180.0,0.00021783]
[1761765585052,0.68408023,111190.0,111180.0,0.00021783]
[1761765585702,0.72026251,111190.0,111180.0,0.00021783]
[1761765585909,0.72126251,111190.0,111180.0,0.00021783]
[1761765586571,0.74026249,111190.0,111180.0,1e-08]
[1761765586794,0.75941159,111190.0,111180.0,1e-08]
[1761765587013,0.51992083,111160.0,111150.0,0.00014449]
[1761765587224,0.68334204,111160.0,111150.0,0.00014449]
[1761765591145,0.60973984,111160.0,111150.0,0.00014449]
[1761765591776,0.51992083,111160.0,111150.0,0.00014449]